Cogmind - Beta 13 @@@ ROGUE MODE // 2024.04.02 @ 22:48:10 Player: BRAD-ly Result: Destroyed by G-34 Mercenary with Small Laser Performance ------------- Evolutions (0) 0 Regions Visited (1) 200 Robots Destroyed (11) 55 Value Destroyed (187) 187 Prototype IDs (0) 0 Alien Tech Used (0) 0 Bonus (0) 0 TOTAL SCORE: 442 Bonus ------- None Cogmind --------- Core Integrity 0/250 Matter 207/300 Energy 125/125 System Corruption 0% Temperature Warning (301) Movement Rolling (95) Ox1 Location -10/Materials Parts ------- > --- POWER (1) -------- Light Ion Engine > --- PROPULSION (2) --- Wheel > --- UTILITY (2) ------ Medium Storage Unit Visual Processing Unit > --- WEAPON (2) ------- Medium Laser Small Laser > --- INVENTORY (10) --- Small Storage Unit Sensor Array Medium Laser Small Laser Welding Torch Welding Torch Peak State ------------ > --- POWER ------------ Ion Engine > --- PROPULSION ------- Wheel Compact Wheel > --- UTILITY ---------- Small Storage Unit Visual Processing Unit > --- WEAPON ----------- Medium Laser Small Laser > --- INVENTORY -------- Small Laser Welding Torch Welding Torch [Rating: 8] Favorites ----------- Power Ion Engine Engine Ion Engine Propulsion Wheel Wheel Wheel Utility Small Storage Unit Storage Small Storage Unit Processor Visual Processing Unit Weapon Medium Laser Energy Gun Medium Laser Build | -11 -10 ------- Run | Yrd Mat Slots Evolved . | . . Power . | . . Propulsion . | . . Utility . | . . Weapon . | . . Parts Attached 10 | 6 4 Power 2 | 1 1 Engine 2 | 1 1 Core . | . . Reactor . | . . Propulsion 3 | 2 1 Treads . | . . Leg . | . . Wheel 3 | 2 1 Hover . | . . Flight . | . . Utility 3 | 1 2 Device . | . . Storage 2 | 1 1 Processor 1 | . 1 Hackware . | . . Protection . | . . Artifact . | . . Weapon 2 | 2 . Energy Gun 2 | 2 . Energy Cannon . | . . Ballistic Gun . | . . Ballistic Cannon . | . . Launcher . | . . Special Weapon . | . . Impact Weapon . | . . Slashing Weapon . | . . Piercing Weapon . | . . Special Melee Weapon . | . . Unidentified Prototypes . | . . Parts Lost . | . . Power . | . . Propulsion . | . . Utility . | . . Weapon . | . . Highest Loss Streak . | . . To Critical Strikes . | . . Average Slot Usage (%) 91 | . 91 Engine 13 | . 13 Wheel 25 | . 25 Storage 14 | . 14 Processor 8 | . 8 Energy Gun 28 | . 28 Naked Turns . | . . Heaviest Build 16 | 13 16 Greatest Support 26 | 26 26 Greatest Overweight (x) 1 | . 1 Average Overweight (x) . | . . Largest Inventory Capacity 10 | 8 10 Average Capacity 8 | 6 8 Most Carried 8 | 1 8 Average Carried 3 | . 3 Final Capacity 10 | 8 10 Final Carried 6 | 1 6 Class Distribution -------------------- 100% | Mutant Dominant Class ---------------- Mutant | -10/Materials Resources | -11 -10 ----------- Run | Yrd Mat Matter Collected 207 | 136 71 Remotely . | . . Salvage Created 392 | 54 338 Parts 15 | 1 14 Haulers Intercepted . | . . Recyclers Shooed 1 | . 1 Parts Field Recycled . | . . Retrieved Matter . | . . Parts Self-Destructed . | . . Prevented . | . . Kills | -11 -10 ------- Run | Yrd Mat Combat Hostiles Destroyed 5 | . 5 Guns 5 | . 5 Classes Destroyed 4 | 1 3 Recycler 4 | 1 3 Watcher 2 | . 2 Swarmer 3 | . 3 Grunt 2 | . 2 Best Kill Streak 6 | 1 6 Combat Bots Only 3 | . 3 Max Kills in Single Turn 2 | 1 2 Gunslinging . | . . Exploded . | . . Melee . | . . Uniques/NPCs Destroyed . | . . Combat | -11 -10 -------- Run | Yrd Mat Hostile Shots Fired 38 | . 38 Missed 9 | . 9 Damage Taken 407 | . 407 Core 260 | . 260 Absorbed by Shields . | . . Core Remaining (%) 100 | 100 . Volleys Fired 32 | 5 27 Largest 2 | 2 2 Hottest 90 | 90 90 Shots Fired 63 | 10 53 Gun 63 | 10 53 Cannon . | . . Launcher . | . . Special . | . . Kinetic . | . . Thermal 63 | 10 53 Explosive . | . . Electromagnetic . | . . Robot Hit Streak 10 | 6 10 Robot Miss Streak 6 | 1 6 Penetration Max . | . . Secondary Targets . | . . Shots Hit Robots 40 | 7 33 Core Hits 18 | 2 16 Critical Kills . | . . Critical Parts Destroyed . | . . Critical Strikes 2 | 1 1 Burn 2 | 1 1 Melee Attacks . | . . Impact . | . . Slashing . | . . Piercing . | . . Sneak Attacks . | . . Combat Hostiles . | . . Follow-up Attacks . | . . Damage Inflicted 676 | 94 582 Guns 494 | 94 400 Cannons . | . . Explosions 182 | . 182 Melee . | . . Ramming . | . . Kinetic . | . . Thermal 494 | 94 400 Explosive 182 | . 182 Electromagnetic . | . . Impact . | . . Slashing . | . . Piercing . | . . Highest Corruption . | . . Average Corruption . | . . Corruption Purged . | . . Corruption Blocked . | . . Overload Shots . | . . Overflow Damage . | . . Projectiles . | . . Explosions . | . . Melee . | . . Knockbacks . | . . Impact . | . . Kinetic . | . . Secondary . | . . Self-Inflicted Damage 108 | . 108 Shots 1 | . 1 Rammed . | . . Targets Rammed . | . . Kicked . | . . Crushed . | . . Highest Temperature 390 | 150 390 Average Temperature 168 | 76 187 Received Heat Transfer 99 | . 99 Effects 4 | . 4 Energy Bleed 1 | . 1 Interference 1 | . 1 Short Circuit 2 | . 2 Siege Activations . | . . Robots Corrupted . | . . Combat Hostiles . | . . Parts Fried . | . . Impact Corruptions . | . . Robots Melted . | . . Combat Hostiles . | . . Parts Melted 3 | 1 2 Heat Transferred 1450 | 322 1128 Parts Sabotaged . | . . Parts Stolen . | . . Parts Stripped . | . . Power Chain Reactions . | . . Alert | -11 -10 ------- Run | Yrd Mat Peak Influence 246 | 5 246 Initial 3 | . 3 Average 71 | . 84 Maximum Alert Level 1 | . 1 Low Security (%) 78 | 100 74 Level 1 21 | . 25 Level 2 . | . . Level 3 . | . . Level 4 . | . . Level 5 . | . . High Security . | . . Max Security . | . . Squads Dispatched 2 | . 2 Investigation 1 | . 1 Extermination . | . . Reinforcement 1 | . 1 Assault . | . . Garrison . | . . Intercept . | . . Searches Triggered . | . . Construction Impeded . | . . Haulers Reinforced . | . . Active Scanning Responses . | . . Cargo Convoy Interrupts . | . . Stealth | -11 -10 --------- Run | Yrd Mat Distress Signals 1 | . 1 Communications Jammed . | . . Distress Signals . | . . Times Spotted 8 | . 8 Peak Tracking Total 4 | . 4 Tactical Retreats . | . . Traps | -11 -10 ------- Run | Yrd Mat Traps Triggered 1 | . 1 Indirectly . | . . Trap Hack Attempts . | . . Triggered . | . . Disarmed . | . . Reprogrammed . | . . Reused . | . . Traps Extracted . | . . Installed . | . . Triggered . | . . Machines | -11 -10 ---------- Run | Yrd Mat Machines Disabled 2 | . 2 Max in Single Turn 2 | . 2 Machines Repaired . | . . Machines Dismantled . | . . Machines Sabotaged . | . . Overloaded Fab Kills . | . . Hacking | -11 -10 --------- Run | Yrd Mat Machines Accessed 1 | . 1 Terminals 1 | . 1 Fabricators . | . . Repair Stations . | . . Recycling Units . | . . Scanalyzers . | . . Garrison Access . | . . Total Hacks 3 | . 3 Successful 1 | . 1 Failed 2 | . 2 Catastrophic 1 | . 1 Database Lockouts . | . . Manual . | . . Terminals 3 | . 3 Fabricators . | . . Repair Stations . | . . Recycling Units . | . . Scanalyzers . | . . Garrison Access . | . . Terminal Hacks 1 | . 1 Branch Access Points 1 | . 1 Fabricator Hacks . | . . Repair Station Hacks . | . . Recycling Unit Hacks . | . . Scanalyzer . | . . Garrison Access Hacks . | . . Unauthorized Hacks . | . . Terminals . | . . Fabricators . | . . Repair Stations . | . . Recycling Units . | . . Scanalyzers . | . . Garrison Access . | . . Data Cores Recovered . | . . Used . | . . Hacking Detections 1 | . 1 Full Trace Events . | . . Feedback Events . | . . Feedback Blocked . | . . Robot Schematics Acquired . | . . Robots Built . | . . Authchips . | . . Time . | . . Total Robot Build Rating . | . . Part Schematics Acquired . | . . Parts Built . | . . Authchips . | . . Time . | . . Total Part Build Rating . | . . Parts Repaired . | . . Time . | . . Parts Recycled . | . . Recycled Matter . | . . Retrieved Matter . | . . Retrieved Components . | . . Parts Scanalyzed . | . . Part Schematics Acquired . | . . Parts Damaged . | . . Bothacking | -11 -10 ------------ Run | Yrd Mat Used RIF Installer . | . . Robots Hacked . | . . Non-combat . | . . Combat . | . . Robot Hacks Applied . | . . Relay Couplers Released . | . . Fabnet Peak Effective % . | . . Robots Rewired . | . . Allies Hacked . | . . Hacks Repelled . | . . Allies | -11 -10 -------- Run | Yrd Mat Total Allies . | . . Largest Group . | . . Highest-Rated Group . | . . Highest-Rated Ally . | . . Total Orders . | . . Ally Attacks . | . . Total Damage . | . . Kills . | . . Allies Corrupted . | . . Allies Melted . | . . Intel | -11 -10 ------- Run | Yrd Mat Robot Analysis Total . | . . Derelict Logs Recovered . | . . Drone Launches . | . . Drone Recoveries . | . . Exploration | -11 -10 ------------- Run | Yrd Mat Turns Passed 378 | 57 321 Spaces Moved 288 | 38 250 Core 5 | 5 . Treads . | . . Legs . | . . Wheels 283 | 33 250 Hover . | . . Flight . | . . Fastest Speed 50 | 50 90 Average Speed 90 | 85 91 Slowest Speed 100 | 100 95 Overloaded Moves . | . . Propulsion Burnouts . | . . Robots Hopped . | . . Cave-ins Triggered . | . . Exploration Rate (%) 25 | 3 48 Regions Visited 1 Branch Regions . Pre-discovered Areas . | . . Known Exits Taken . | . . Unknown Exits Taken 1 | 1 . Scrap Searched . | . . Spaces Dug . | . . Terrain Destroyed 20 | . 20 Melee . | . . Projectile . | . . AOE 20 | . 20 Terrain Rammed . | . . Walls Destroyed . | . . Machines Disabled . | . . Actions | -11 -10 --------- Run | Yrd Mat Total 339 | 49 290 Wait . | . . Move 287 | 37 250 Hop . | . . Pick Up 5 | 1 4 Fast Attach 8 | 6 2 Attach . | . . Detach 2 | . 2 Swap 2 | . 2 Drop 3 | . 3 Fire 32 | 5 27 Melee . | . . Ram . | . . Kick . | . . Crush . | . . Escape Stasis . | . . Rewire . | . . Trap . | . . Miscellaneous . | . . Route ------- -11/Scrapyard -10/Materials (discovered 3 exits: [*Mat] / *Min x2) History --------- Turn | Location | Event 9 | -11/Scrapyard | Discovered new exit (range 15) 58 | -11/Scrapyard | Entered Materials 103 | -10/Materials | Discovered new exit (range 16) 211 | -10/Materials | Discovered new exit (range 3) 230 | -10/Materials | Identified exit to Mines 259 | -10/Materials | Core integrity fell below 50% 302 | -10/Materials | Build established: Mutant 365 | -10/Materials | Core integrity fell below 20% 379 | -10/Materials | Destroyed by G-34 Mercenary with Small Laser Last Messages --------------- 00354_ K-01 Serf cleans the Processing Tank. 00354_ K-01 Serf collects debris. 00357_ K-01 Serf cleans the Processing Tank. 00363_ K-01 Serf collects debris. 00364_ U-05 Engineer builds a Wall. 00365_ Imp. Heat Sink melted. 00365_ G-47 Trooper destroyed. 00365_ K-01 Serf cleans the Processing Tank. 00367_ K-01 Serf collects debris. 00368_ K-01 Serf cleans the Processing Tank. 00369_ R-06 Scavenger collects Lgt. Ion Engine. 00370_ K-01 Serf cleans the Processing Tank. 00371_ K-01 Serf collects debris. 00374_ R-06 Scavenger collects Lgt. Ion Engine. 00375_ Overheating: System interference. 00375_ Sml. Laser temporarily disabled. 00375_ K-01 Serf collects debris. 00377_ K-01 Serf cleans the Processing Tank. Map ----- +----------------------------------------------------+ | ??????????????????????????????????????????????? | | ??????????????????????????????????????????????? | | ??????????????????????????????????????????????? | | ??????????????????????????????????????????????? | | ??????????????????????????????????????????????? | | ??????????????????????????????????????????????? | | ??????????????????????????????????????????????? | | ??????????????????????????????????????????????? | | ??????????????????????????????????????????????? | | ??????????????????????????????????????????????? | | ??????????????????????????????????????????????? | | ??????????????????????????????????????????????? | | ??????????????????????????????????????????????? | | ???????????????????????????????????????"??????? | | ?????????????????????????????????????? ?????? | | ?????????????###########?????????????? ???? | | ?##########??# """ #???????????????? ??? | | ?# #??# """"" #?????????#?####??# ?? | | ?# *= #??# """"" #???????? # # ## | | ?# || #??# """"" #?????? | | ?# || #??# """ #????? ?? > | | ?# #??# # ??? ???? | | ?# #?## # #?????? ## " | | ?# ### # #?????????????# " | | ?# %# #####+#/# g # ???????????# " | | ?# # # @%[ + ??????????# | | ?######+## *=+ * #????########## | | ????# # # k #????# / # # | | ????# " # * % #????# # # | | ????# "T # #????# "" + # | | ????# % * # #????# Y" # + | | ????# # + #????# "" # # | | ###### ## # #????# # # | | # # ## """ # %###########+### # | | # # ########### + | | # + k k # | | # # #############o """k k # | | # # ###########?# """ ############## # | | # # # #?# """ #????????????# # | | # # # #?# """ #????????????# + | | # # # #?# """ #????????????# # | | # # # #?# #???????????? # | | ###### + #?# #???????????###+## | | ?????# # ### #????????????????? | | ?????# < # / #+###????????????? | | ?????# # ### #????????????? | | ?????###############?# #????????????? | | ?????????????????????# #????????????? | | ?????????????????????# " #????????????? | | ???????????????????# T #????????????? | +----------------------------------------------------+ Best States ------------- Heat Dissipation 25 Energy Generation 10 Energy Capacity 250 Matter Stores 227 Matter Capacity 300 Sight Range 18 Terrain Scan Density 10 Evasion (%) 42 Item Schematics ----------------- None Robot Schematics ------------------ None Fabricated ------------ Nothing Alien Tech Used ----------------- None Achievements -------------- None Challenges ------------ None Game ------ Seed DOMAIN Manual? 1 Play Time 00:07:26 Cumulative 6.9 hours Start 2024.04.02 @ 22:43:25 End 2024.04.02 @ 22:48:10 Sessions 1 Manual Loads 0 Difficulty Rogue Special Mode None Game No. 14 Rogue 14 Adventurer 0 Explorer 0 Win Type - Total 0 Types 0/0/0/0/0/0/0/0/0 Lore% 2 Gallery% 10 Achievement% 11 Wizard Run 0 Options --------- Layout 2 ASCII 0 Keyboard 1 Movement Arrows Keybinds 0 Fullscreen 1 Font 32/SmallcapsGlow Map View 25x22 Zoom Use 99% Tactical HUD 1 Map Filters NONE Filters NONE Steam 1 RUN: ca63e3bb-5c94-4600-a0b9-ccda1b414963